Cogmind - Beta 17.1 @@@ ROGUE MODE // 2026.09.17 @ 17:25:52 Player: Maynard Result: Destroyed by Y-45 Defender with Beam Rifle Performance ------------- Evolutions (1) 500 Regions Visited (2) 400 Robots Destroyed (40) 200 Value Destroyed (639) 639 Prototype IDs (0) 0 Alien Tech Used (0) 0 Bonus (0) 0 TOTAL SCORE: 1739 Bonus ------- None Cogmind --------- Core Integrity 0/400 Matter 117/300 Energy 99/100 System Corruption 0% Temperature Cool (9) Movement Walking (190) Ox1 Location -9/Materials Parts ------- > --- POWER (1) -------- (None) > --- PROPULSION (3) --- Light Treads Aluminum Leg Aluminum Leg > --- UTILITY (3) ------ Large Storage Unit Targeting Computer Utility Shielding > --- WEAPON (2) ------- Light Assault Rifle Mining Claw > --- INVENTORY (15) --- Light Treads High-capacity Matter Pod (0) Terrain Scanner Light Assault Rifle Peak State ------------ > --- POWER ------------ Ion Engine > --- PROPULSION ------- Wheel Compact Wheel Compact Wheel > --- UTILITY ---------- Large Storage Unit Targeting Computer Utility Shielding > --- WEAPON ----------- EM Pulse Gun Grenade Launcher > --- INVENTORY -------- Light Ion Engine Light Treads Light Treads Aluminum Leg Aluminum Leg Light Assault Rifle Light Assault Rifle Rocket Launcher Mining Claw [Rating: 10] Favorites ----------- Power Ion Engine Engine Ion Engine Propulsion Compact Wheel Treads Light Treads Leg Aluminum Leg Wheel Compact Wheel Utility Large Storage Unit Storage Large Storage Unit Processor Targeting Computer Protection Utility Shielding Weapon EM Pulse Gun Energy Gun EM Pulse Gun Ballistic Gun Light Assault Rifle Launcher Grenade Launcher Slashing Weapon Mining Claw Build | -11 -10 -9 ------- Run | Yrd Mat Mat Slots Evolved 2 | . . 2 Power . | . . . Propulsion 1 | . . 1 Utility 1 | . . 1 Weapon . | . . . Parts Attached 18 | 6 5 7 Power 2 | 1 . 1 Engine 2 | 1 . 1 Core . | . . . Reactor . | . . . Propulsion 6 | 2 2 2 Treads 1 | . . 1 Leg 2 | . 2 . Wheel 3 | 2 . 1 Hover . | . . . Flight . | . . . Utility 4 | 1 2 1 Device . | . . . Storage 2 | 1 1 . Processor 1 | . 1 . Hackware . | . . . Protection 1 | . . 1 Artifact . | . . . Weapon 6 | 2 1 3 Energy Gun 1 | 1 . . Energy Cannon . | . . . Ballistic Gun 2 | 1 . 1 Ballistic Cannon . | . . . Launcher 2 | . 1 1 Special Weapon . | . . . Impact Weapon . | . . . Slashing Weapon 1 | . . 1 Piercing Weapon . | . . . Special Melee Weapon . | . . . Unidentified Prototypes . | . . . Parts Lost 8 | . . 8 Power 2 | . . 2 Propulsion 3 | . . 3 Utility . | . . . Weapon 3 | . . 3 Highest Loss Streak 6 | . . 6 To Critical Strikes . | . . . Average Backups 7 | 4 9 7 Power . | . 1 . Propulsion 3 | 2 5 2 Utility . | . . 1 Weapon 2 | . 2 2 Tool/Special . | . . . Unused Backups 4 | . . 4 Power . | . . . Propulsion 1 | . . 1 Utility 2 | . . 2 Weapon 1 | . . 1 Tool/Special . | . . . Average Slot Usage (%) 92 | . 95 91 Engine 10 | . 14 8 Treads 2 | . . 4 Leg 5 | . . 9 Wheel 19 | . 27 14 Storage 12 | . 14 11 Processor 10 | . 9 11 Protection 6 | . . 10 Energy Gun 8 | . 14 5 Ballistic Gun 3 | . 2 3 Launcher 6 | . 11 4 Slashing Weapon 5 | . . 8 Peak Build Rating 10 | 6 8 10 Average Rating 7 | 4 7 8 On Entrance 4 | . 6 8 Avg Prop Armor Cover (%) 11 | . . 11 Naked Turns . | . . . Heaviest Build 31 | 13 30 31 Greatest Support 42 | 26 26 42 Greatest Overweight (x) 7 | 1 1 7 Average Overweight (x) . | . . . Largest Inventory Capacity 15 | 8 15 15 Average Capacity 14 | 7 14 15 Most Carried 11 | 7 11 10 Average Carried 7 | 5 9 7 Final Capacity 15 | 8 15 15 Final Carried 11 | 7 11 4 Class Distribution -------------------- 100% | Mutant Dominant Class ---------------- Mutant | -10/Materials Mutant | -9/Materials Resources | -11 -10 -9 ----------- Run | Yrd Mat Mat Matter Collected 743 | 265 103 375 Remotely . | . . . Salvage Created 769 | 90 235 444 Parts 51 | 2 26 23 Haulers Intercepted 1 | . 1 . Recyclers Shooed 4 | . 1 3 Parts Field Recycled . | . . . Retrieved Matter . | . . . Parts Self-Destructed . | . . . Prevented . | . . . Parts Restored . | . . . Kills | -11 -10 -9 ------- Run | Yrd Mat Mat Combat Hostiles Destroyed 22 | . 11 11 Melee 1 | . . 1 Guns 6 | . 1 5 AOE 15 | . 10 5 Classes Destroyed 9 | 1 7 1 Worker 7 | . 3 4 Builder 3 | . 2 1 Hauler 1 | . 1 . Recycler 3 | 1 . 2 Operator 1 | . 1 . Watcher 3 | . 1 2 Swarmer 12 | . 6 6 Grunt 7 | . 5 2 Sentry 3 | . . 3 Best Kill Streak 9 | 1 9 6 Combat Bots Only 5 | . 5 4 Max Kills in Single Turn 3 | 1 2 3 Gunslinging . | . . . Exploded 2 | . 1 2 Melee 1 | . . 1 Uniques/NPCs Destroyed . | . . . Combat | -11 -10 -9 -------- Run | Yrd Mat Mat Hostile Shots Fired 153 | . 32 121 Missed 49 | . 12 37 Hits 104 | . 20 84 Projectile 104 | . 20 84 Critical Strikes 1 | . . 1 Damage Taken 1273 | . 259 1014 Core 490 | . 90 400 Absorbed by Shields . | . . . Redirected to Shielding 22 | . . 22 Core Remaining (%) 82 | 100 64 . Volleys Fired 91 | 6 33 52 Largest 1 | 1 1 1 Hottest 40 | 40 40 40 Shots Fired 91 | 6 33 52 Gun 46 | 6 7 33 Cannon . | . . . Launcher 45 | . 26 19 Special . | . . . Kinetic 28 | 5 . 23 Thermal . | . . . Explosive 45 | . 26 19 Electromagnetic 18 | 1 7 10 Robot Hit Streak 14 | 6 6 14 Robot Miss Streak 3 | . 2 3 Penetration Max . | . . . Secondary Targets . | . . . Shots Hit Robots 53 | 6 14 33 Core Hits 66 | 2 32 32 Critical Kills . | . . . Critical Parts Destroyed . | . . . Critical Strikes . | . . . Melee Attacks 31 | . . 31 Impact . | . . . Slashing 31 | . . 31 Piercing . | . . . Sneak Attacks 1 | . . 1 Combat Hostiles . | . . . Follow-up Attacks . | . . . Damage Inflicted 2465 | 57 1056 1352 Guns 373 | 57 62 254 Cannons . | . . . Explosions 2019 | . 994 1025 Melee 73 | . . 73 Ramming . | . . . Kinetic 191 | 44 . 147 Thermal . | . . . Explosive 2019 | . 994 1025 Electromagnetic 182 | 13 62 107 Impact . | . . . Slashing 73 | . . 73 Piercing . | . . . Highest Corruption . | . . . Average Corruption . | . . . Corruption Purged . | . . . Corruption Blocked . | . . . Overload Shots . | . . . Overflow Damage 123 | . 35 88 Projectiles . | . . . Explosions 123 | . 35 88 Melee . | . . . Knockbacks . | . . . Impact . | . . . Kinetic . | . . . Secondary . | . . . Self-Inflicted Damage 148 | . 80 68 Shots 7 | . 4 3 Rammed . | . . . Targets Rammed . | . . . Kicked . | . . . Crushed . | . . . Highest Temperature 6 | . 6 3 Average Temperature 2 | . 3 2 Received Heat Transfer 267 | . 48 219 Siege Activations . | . . . Martial Activations . | . . . Shielding Activations . | . . . Robots Disrupted . | . . . Combat Hostiles . | . . . Robots Corrupted . | . . . Combat Hostiles . | . . . Parts Fried 2 | . . 2 Impact Corruptions . | . . . Robots Melted . | . . . Combat Hostiles . | . . . Parts Melted . | . . . Heat Transferred . | . . . Parts Sabotaged . | . . . Parts Stolen . | . . . Parts Stripped . | . . . Power Chain Reactions . | . . . Alert | -11 -10 -9 ------- Run | Yrd Mat Mat Maximum Alert Level 1 | . 1 1 Low Security (%) 80 | 100 85 75 Level 1 19 | . 14 24 Level 2 . | . . . Level 3 . | . . . Level 4 . | . . . Level 5 . | . . . High Security . | . . . Max Security . | . . . Peak Influence 295 | 5 295 294 Initial 61 | . . 61 Average 92 | . 92 104 Influence Increases 920 | 5 426 489 Destroy 0b10 Robot/C 440 | . 220 220 Destroy 0b10 Robot/NC 90 | 5 40 45 Destroy Leader 118 | . 54 64 Successful Hack 2 | . 2 . Disable Machine 60 | . 15 45 Destroy Structure 195 | . 95 100 Lose Combat Pursuer 15 | . . 15 Influence Decreases 656 | 5 279 372 Entered New Map 86 | . . 86 Time Decay 341 | 5 129 207 Lost Part 79 | . . 79 Purge Threat 150 | . 150 . Squads Dispatched 4 | . 3 1 Investigation 1 | . 1 . Extermination . | . . . Reinforcement 3 | . 2 1 Assault . | . . . Garrison . | . . . Intercept . | . . . Searches Triggered . | . . . Construction Impeded . | . . . Haulers Reinforced . | . . . Active Scanning Responses . | . . . Cargo Convoy Interrupts . | . . . Stealth | -11 -10 -9 --------- Run | Yrd Mat Mat Distress Signals 5 | . 1 4 Communications Jammed . | . . . Distress Signals . | . . . Times Spotted 38 | . 14 24 Peak Tracking Total 6 | . 3 6 Tactical Retreats 1 | . . 1 Traps | -11 -10 -9 ------- Run | Yrd Mat Mat Traps Triggered 1 | . 1 . Indirectly . | . . . Trap Hack Attempts . | . . . Triggered . | . . . Disarmed . | . . . Reprogrammed . | . . . Reused . | . . . Traps Extracted . | . . . Installed . | . . . Triggered . | . . . Machines | -11 -10 -9 ---------- Run | Yrd Mat Mat Machines Disabled 4 | . 1 3 Max in Single Turn 2 | . 1 2 Machines Repaired . | . . . Machines Dismantled . | . . . Machines Sabotaged . | . . . Overloaded Fab Kills . | . . . Hacking | -11 -10 -9 --------- Run | Yrd Mat Mat Machines Accessed 3 | . 2 1 Terminals 3 | . 2 1 Fabricators . | . . . Repair Stations . | . . . Recycling Units . | . . . Scanalyzers . | . . . Garrison Access . | . . . Total Hacks 6 | . 5 1 Successful 5 | . 4 1 Failed 1 | . 1 . Catastrophic . | . . . Database Lockouts . | . . . Manual . | . . . Terminals 6 | . 5 1 Fabricators . | . . . Repair Stations . | . . . Recycling Units . | . . . Scanalyzers . | . . . Garrison Access . | . . . Terminal Hacks 5 | . 4 1 Record 2 | . 1 1 Alert Level 2 | . 2 . Unreport Threat 1 | . 1 . Fabricator Hacks . | . . . Repair Station Hacks . | . . . Recycling Unit Hacks . | . . . Scanalyzer . | . . . Garrison Access Hacks . | . . . Unauthorized Hacks . | . . . Terminals . | . . . Fabricators . | . . . Repair Stations . | . . . Recycling Units . | . . . Scanalyzers . | . . . Garrison Access . | . . . Data Cores Recovered . | . . . Used . | . . . Hacking Detections 2 | . 2 . Full Trace Events 1 | . 1 . Feedback Events . | . . . Feedback Blocked . | . . . Robot Schematics Acquired . | . . . Robots Built . | . . . Authchips . | . . . Time . | . . . Total Robot Build Rating . | . . . Part Schematics Acquired . | . . . Parts Built . | . . . Authchips . | . . . Time . | . . . Total Part Build Rating . | . . . Part Studies Acquired . | . . . Parts Repaired . | . . . Time . | . . . Parts Recycled . | . . . Recycled Matter . | . . . Retrieved Matter . | . . . Retrieved Components . | . . . Parts Scanalyzed . | . . . Part Schematics Acquired . | . . . Parts Damaged . | . . . Bothacking | -11 -10 -9 ------------ Run | Yrd Mat Mat Used RIF Installer . | . . . Robots Hacked . | . . . Non-combat . | . . . Combat . | . . . Robot Hacks Applied . | . . . Relay Couplers Released . | . . . Fabnet Peak Effective % . | . . . Robots Rewired . | . . . Allies Hacked . | . . . Hacks Repelled . | . . . Allies | -11 -10 -9 -------- Run | Yrd Mat Mat Total Allies . | . . . Largest Group . | . . . Highest-Rated Group . | . . . Highest-Rated Ally . | . . . Total Orders . | . . . Ally Attacks . | . . . Total Damage . | . . . Kills . | . . . Allies Corrupted . | . . . Allies Melted . | . . . Intel | -11 -10 -9 ------- Run | Yrd Mat Mat Active Infowar (turns) . | . . . Robot Analysis Total . | . . . Derelict Logs Recovered . | . . . Drone Launches . | . . . Drone Recoveries . | . . . Exploration | -11 -10 -9 ------------- Run | Yrd Mat Mat Turns Passed 933 | 67 318 548 Spaces Moved 487 | 47 222 218 Core 21 | 12 . 9 Treads . | . . . Legs 78 | . . 78 Wheels 388 | 35 222 131 Hover . | . . . Flight . | . . . Fastest Speed 50 | 50 90 93 Average Speed 118 | 80 104 141 Slowest Speed 400 | 95 105 400 Overloaded Moves . | . . . Propulsion Burnouts . | . . . Robots Hopped . | . . . Potential Cave-ins 21 | . . 21 Cave-ins Triggered . | . . . Exploration Rate (%) 25 | 3 47 27 Regions Visited 2 Branch Regions . Pre-discovered Areas . | . . . Known Exits Taken . | . . . Unknown Exits Taken 2 | 1 1 . Scrap Searched . | . . . Spaces Dug 29 | . . 29 Terrain Destroyed 247 | . 110 137 Melee 29 | . . 29 Projectile . | . . . AOE 218 | . 110 108 Terrain Rammed . | . . . Walls Destroyed . | . . . Machines Disabled . | . . . Actions | -11 -10 -9 --------- Run | Yrd Mat Mat Total 691 | 71 272 348 Wait 31 | . . 31 Move 485 | 46 221 218 Hop . | . . . Pick Up 23 | 13 7 3 Fast Attach . | . . . Attach 16 | 6 1 9 Detach . | . . . Swap 11 | . 8 3 Drop 3 | . 2 1 Fire 91 | 6 33 52 Melee 31 | . . 31 Ram . | . . . Kick . | . . . Crush . | . . . Escape Stasis . | . . . Rewire . | . . . Trap . | . . . Miscellaneous . | . . . Route ------- -11/Scrapyard -10/Materials -9/Materials (discovered 1 exit: [*Min]) History --------- Turn | Location | Event 39 | -11/Scrapyard | Discovered new exit (range 13) 68 | -11/Scrapyard | Entered Materials 316 | -10/Materials | Build established: Mutant 331 | -10/Materials | Discovered new exit (range 16) 386 | -10/Materials | Entered another Materials area 386 | -9/Materials | Evolved 2 slots: Propulsion x1, Utility x1 678 | -9/Materials | Lost 6 parts (1p3n2w) 690 | -9/Materials | Core integrity fell below 50% 894 | -9/Materials | Discovered new exit (range 10) 896 | -9/Materials | Core integrity fell below 20% 934 | -9/Materials | Destroyed by Y-45 Defender with Beam Rifle Last Messages --------------- 00830_ Destroyed Med. Matter Pod. 00830_ K-01 Serf destroyed. 00831_ U-05 Engineer lays Concrete. 00832_ Destroyed Lgt. Ion Engine. 00832_ W-16 Scout destroyed. 00833_ U-05 Engineer builds a Wall. 00835_ The unstable cave ceiling collapses. 00837_ U-05 Engineer builds a Door. 00838_ Rocket Launcher destroyed. 00841_ U-05 Engineer builds a Wall. 00846_ U-05 Engineer lays Concrete. 00848_ The unstable cave ceiling collapses. 00848_ U-05 Engineer lays Concrete. 00851_ K-01 Serf collects debris. 00869_ The unstable cave ceiling collapses. 00874_ U-05 Engineer lays Concrete. 00894_ EXIT=FOUND 00895_ Lgt. Ion Engine destroyed. 00926_ Y-45 Defender destroyed. 00930_ Acquired 59 matter. Map ----- +----------------------------------------------------+ | ????? # ???????????????????????? | | ####### + = ??????????????????????? | | # # [ ???????????????????????? | | # # # #?????????????????????????? | | + [ [ #??????????????????????????? | | # *|! #??????????????????????????? | | # = #???????????????????????????? | | # == = #???????????????????????????? | | # # #???????????????????????????? | | # # ## ####???????????????????????????? | | # # #### T?????????????????????????????? | | #### ## #### ""#????????????????????????????? | | ???#### # #?#????????????????????????????? | | ??????# """ """ # #??????????????????????????????? | | ??????# """ """ # ##########?????????????????????? | | ??????# """ """ # #?????????????????????? | | ??????# / #?????????????????????? | | ??????# # #?????????????????????? | | ??????# ######## #?????????????????????? | | ??????# #??????# #?????????????????????? | | ??????###########??????# #????#####????????????? | | ???????????????????????# #### ####?????????? | | ???????????????######### ????????? | | ???????? Y < ????????? | | ???????????????#### ####Y ! ????????? | | ?????????????????##+#####@##### ###??????????? | | ?????????????????# [! #?#####????????????? | | ?????????????????# """ !#??????????????????? | | ?????????????????# """ !!! #??????????????????? | | ?????????????????# """ !!! #??????????????????? | | ?????????????????# !! #??????????????????? | | ???????????????????############??????????????????? | | | | | | | | | | | | | | | | | | | | | | | | | | | | | | | | | | | | | +----------------------------------------------------+ Best States ------------- Heat Dissipation 28 Energy Generation 10 Energy Capacity 250 Matter Stores 300 Matter Capacity 300 Sight Range 16 Terrain Scan Density 10 Utility Shielding 33 Evasion (%) 42 Targeting Accuracy 5 Item Schematics ----------------- None Robot Schematics ------------------ None Fabricated ------------ Nothing Repaired ---------- Nothing Studied --------- None Alien Tech Used ----------------- None Achievements -------------- Everything Is Under Control Part-time Excavator Challenges ------------ None Game ------ Seed GodFrostArmor Manual? 0 Play Time 00:20:54 Cumulative 14.2 hours Start 2026.09.17 @ 17:05:43 End 2026.09.17 @ 17:25:52 Sessions 1 Manual Loads 0 Difficulty Rogue Special Mode None Game No. 14 Rogue 14 Adventurer 0 Explorer 0 Win Type - Total 0 Types 0/0/0/0/0/0/0/0/0/0 Lore% 2 Gallery% 15 Achievement% 12 Wizard Run 0 Options --------- Layout 1 ASCII 0 Keyboard 0 Movement Mouse Keybinds 0 Fullscreen 1 Font 24/Smallcaps Map View 50x35 Zoom Use 0% Tactical HUD 1 Map Filters NONE Filters NONE Steam 1 RUN: 2d6a01c2-7929-4f4c-b948-d2a2c6805ee7